bitfinex/quotes_BTCUSD_20250615
["timestamp","ask_amount","ask_price","bid_price","bid_amount"]
[1749949115368,0.57443859,105870.0,105860.0,0.69728786]
[1749949115587,0.73616809,105870.0,105860.0,0.67839579]
[1749949115756,1.16922491,105870.0,105860.0,0.67839579]
[1749949115956,1.18696146,105870.0,105860.0,0.68784187]
[1749949116164,1.16922491,105870.0,105860.0,0.68784187]
[1749949116362,1.18965257,105870.0,105860.0,0.68784187]
[1749949116575,1.18300137,105870.0,105860.0,0.68784187]
[1749949116776,1.18963103,105870.0,105860.0,0.68784187]
[1749949117023,1.20731014,105870.0,105860.0,0.68784187]
[1749949117242,0.47021009,105870.0,105860.0,0.73784187]
[1749949117468,0.44154884,105870.0,105860.0,0.74728777]
[1749949117674,1.07296155,105870.0,105860.0,0.73784187]
[1749949117885,1.09064048,105870.0,105860.0,0.73784187]
[1749949118095,1.05688677,105870.0,105860.0,0.52538962]
[1749949118306,1.05407092,105870.0,105860.0,0.72839579]
[1749949118513,1.07174985,105870.0,105860.0,0.72839579]
[1749949118730,1.07174985,105870.0,105860.0,0.73784187]
[1749949119134,1.06512025,105870.0,105860.0,0.73784187]
[1749949119336,1.07174985,105870.0,105860.0,0.73784187]
[1749949119540,1.04744132,105870.0,105860.0,0.73784187]
[1749949119732,1.07174985,105870.0,105860.0,0.73784187]
[1749949119865,1.05407092,105870.0,105860.0,0.72839579]
[1749949120086,1.07174985,105870.0,105860.0,0.72839579]
[1749949120282,1.05407092,105870.0,105860.0,0.72839579]
[1749949120490,0.62924802,105870.0,105860.0,0.72839579]
[1749949120708,1.04744132,105870.0,105860.0,0.72839579]
[1749949120914,1.06230431,105870.0,105860.0,0.71894962]
[1749949121239,1.07597604,105870.0,105860.0,0.72839588]
[1749949121442,1.06492671,105870.0,105860.0,0.72839588]
[1749949121679,1.08260564,105870.0,105860.0,0.72839588]
[1749949121886,1.06492671,105870.0,105860.0,0.72839588]
[1749949122224,1.08260564,105870.0,105860.0,0.72839588]
[1749949122426,1.06492671,105870.0,105860.0,0.72839588]
[1749949122862,1.05829711,105870.0,105860.0,0.72839588]
[1749949123069,1.1788474,105870.0,105860.0,0.31673442]
[1749949123268,1.1788474,105870.0,105860.0,0.47057442]
[1749949123464,1.15453887,105870.0,105860.0,0.47057442]
[1749949123667,1.1788474,105870.0,105860.0,0.47057442]
[1749949123843,1.1722178,105870.0,105860.0,0.47057442]
[1749949124252,1.1788474,105870.0,105860.0,0.47057442]
[1749949124453,1.16116847,105870.0,105860.0,0.47057442]
[1749949124721,1.17886893,105870.0,105860.0,0.47057442]
[1749949124938,1.17227524,105870.0,105860.0,0.47057442]
[1749949125104,1.16119,105870.0,105860.0,0.47057442]
[1749949125302,1.17892637,105870.0,105860.0,0.47057442]
[1749949125890,1.16119,105870.0,105860.0,0.47057442]
[1749949126083,1.17892637,105870.0,105860.0,0.47057442]
[1749949126284,1.16119,105870.0,105860.0,0.47057442]
[1749949126577,1.17892637,105870.0,105860.0,0.47057442]
[1749949126746,1.16119,105870.0,105860.0,0.47057442]
[1749949126979,1.17892637,105870.0,105860.0,0.47057442]
[1749949127284,1.18779455,105870.0,105860.0,0.47057442]
[1749949127466,1.17892637,105870.0,105860.0,0.47057442]
[1749949127825,1.17005818,105870.0,105860.0,0.47057442]
[1749949128037,0.74529272,105870.0,105860.0,0.47057442]
[1749949128246,1.18779455,105870.0,105860.0,0.47057442]
[1749949128450,1.17005818,105870.0,105860.0,0.47057442]
[1749949128653,1.18779455,105870.0,105860.0,0.47057442]
[1749949129334,1.18114342,105870.0,105860.0,0.47057442]
[1749949129537,1.18779455,105870.0,105860.0,0.47057442]
[1749949130184,1.18779456,105870.0,105860.0,0.47057442]
[1749949130595,1.17005819,105870.0,105860.0,0.47057442]
[1749949130807,1.18779455,105870.0,105860.0,0.47057442]
[1749949131016,1.18779455,105870.0,105860.0,0.27701442]
[1749949131194,1.16119018,105870.0,105860.0,0.27701442]
[1749949131401,1.62364597,105870.0,105860.0,0.43085442]
[1749949131643,1.63029752,105870.0,105860.0,0.43085442]
[1749949131853,1.63029883,105870.0,105860.0,0.43085442]
[1749949132032,1.63029885,105870.0,105860.0,0.27701442]
[1749949132410,1.60369233,105870.0,105860.0,0.43085442]
[1749949132590,1.61256117,105870.0,105860.0,0.43085442]
[1749949132795,1.63029885,105870.0,105860.0,0.43085442]
[1749949133208,1.62251252,105870.0,105860.0,0.43085442]
[1749949133426,1.62915128,105870.0,105860.0,0.43085442]
[1749949133608,1.62250517,105870.0,105860.0,0.43085442]
[1749949133802,1.6114283,105870.0,105860.0,0.43085442]
[1749949134203,1.62250517,105870.0,105860.0,0.43085442]
[1749949134395,1.62915128,105870.0,105860.0,0.43085442]
[1749949135001,1.60256681,105870.0,105860.0,0.43085442]
[1749949135209,1.62915128,105870.0,105860.0,0.43085442]
[1749949135830,1.5959207,105870.0,105860.0,0.43085442]
[1749949136029,1.62915128,105870.0,105860.0,0.43085442]
[1749949136236,1.62915128,105870.0,105860.0,0.15384]
[1749949136493,1.6114283,105870.0,105860.0,0.15384]
[1749949136706,1.62028978,105870.0,105860.0,0.15384]
[1749949136890,1.61364367,105870.0,105860.0,0.15384]
[1749949137065,1.62250515,105870.0,105860.0,0.15384]
[1749949137286,1.68205809,105870.0,105860.0,0.15384]
[1749949137468,1.16892646,105870.0,105860.0,0.22945794]
[1749949137668,1.17778795,105870.0,105860.0,0.22945794]
[1749949137894,1.1866489,105870.0,105860.0,0.22945794]
[1749949138095,1.17114145,105870.0,105860.0,0.22945794]
[1749949138273,1.16892607,105870.0,105860.0,0.22945794]
[1749949138703,1.15341887,105870.0,105860.0,0.22945794]
[1749949138906,1.16228013,105870.0,105860.0,0.22945794]
[1749949139115,1.16006481,105870.0,105860.0,0.22945794]
[1749949139332,1.18664859,105870.0,105860.0,0.22945794]
[1749949139569,1.17114139,105870.0,105860.0,0.22945794]
[1749949139773,1.17778733,105870.0,105860.0,0.22945794]
[1749949139981,1.18000265,105870.0,105860.0,0.22945794]
[1749949140195,1.18664859,105870.0,105860.0,0.22945794]
[1749949140394,1.16006481,105870.0,105860.0,0.22945794]
[1749949140605,1.18664859,105870.0,105860.0,0.22945794]
[1749949140811,1.18000265,105870.0,105860.0,0.22945794]
[1749949141012,1.17114139,105870.0,105860.0,0.22945794]
[1749949141220,1.15341887,105870.0,105860.0,0.07561794]
[1749949141426,1.62250448,105870.0,105860.0,0.22945794]
[1749949141635,1.62028916,105870.0,105860.0,0.22945794]
[1749949141840,1.60478196,105870.0,105860.0,0.22945794]
[1749949142047,1.62915042,105870.0,105860.0,0.22945794]
[1749949142258,1.18664859,105870.0,105860.0,0.22945794]
[1749949142663,1.16228013,105870.0,105860.0,0.22945794]
[1749949142866,1.18000253,105870.0,105860.0,0.22945794]
[1749949143073,1.18000243,105870.0,105860.0,0.22945794]
[1749949143280,1.15341887,105870.0,105860.0,0.22945794]
[1749949143488,1.16228006,105870.0,105860.0,0.22945794]
[1749949143704,1.16892595,105870.0,105860.0,0.22945794]
[1749949143907,1.18664833,105870.0,105860.0,0.22945794]
[1749949144333,1.17778714,105870.0,105860.0,0.22945794]
[1749949144536,1.16228006,105870.0,105860.0,0.22945794]
[1749949144744,1.17778714,105870.0,105860.0,0.22945794]
[1749949144956,1.16892595,105870.0,105860.0,0.22945794]
[1749949145163,1.18664833,105870.0,105860.0,0.22945794]
[1749949145384,1.18000244,105870.0,105860.0,0.22945794]
[1749949145592,0.73750061,105870.0,105860.0,0.22945794]
[1749949145817,1.16892595,105870.0,105860.0,0.22945794]
[1749949146229,1.17780735,105870.0,105860.0,0.22945794]
[1749949146429,1.17115595,105870.0,105860.0,0.22945794]
[1749949146660,1.15341887,105870.0,105860.0,0.22945794]
[1749949147076,1.18667586,105870.0,105860.0,0.22945794]
[1749949147484,1.18002446,105870.0,105860.0,0.22945794]
[1749949147689,1.1622874,105870.0,105860.0,0.22945794]
[1749949147893,1.18667585,105870.0,105860.0,0.22945794]
[1749949148098,1.1622874,105870.0,105860.0,0.22945794]
[1749949148281,1.15341887,105870.0,105860.0,0.22945794]
[1749949148541,1.61144062,105870.0,105860.0,0.22945794]
[1749949148776,1.62030915,105870.0,105860.0,0.22945794]
[1749949149002,1.61144062,105870.0,105860.0,0.22945794]
[1749949149509,1.62917768,105870.0,105860.0,0.22945794]
[1749949149728,1.61144062,105870.0,105860.0,0.22945794]
[1749949149936,1.62917768,105870.0,105860.0,0.22945794]
[1749949150150,1.61365776,105870.0,105860.0,0.22945794]
[1749949150385,1.62917765,105870.0,105860.0,0.22945794]
[1749949150612,1.60478921,105870.0,105860.0,0.22945794]
[1749949150841,1.62252623,105870.0,105860.0,0.22945794]
[1749949151029,1.60478921,105870.0,105860.0,0.22945794]
[1749949151177,1.61144059,105870.0,105860.0,0.22945794]
[1749949151592,1.62917761,105870.0,105860.0,0.22945794]
[1749949151804,1.60257208,105870.0,105860.0,0.22945794]
[1749949152025,1.59837761,105870.0,105860.0,0.22945794]
[1749949152199,1.12261887,105870.0,105860.0,0.22945794]
[1749949152392,1.14700727,105870.0,105860.0,0.22945794]
[1749949152592,1.10190738,105870.0,105860.0,0.22945794]
[1749949152794,1.11742727,105870.0,105860.0,0.22945794]
[1749949153026,1.10190735,105870.0,105860.0,0.22945794]
[1749949153249,1.10855865,105870.0,105860.0,0.22945794]
[1749949153449,1.11964363,105870.0,105860.0,0.22945794]
[1749949153815,1.12629478,105870.0,105860.0,0.22945794]
[1749949154020,1.09969005,105870.0,105860.0,0.22945794]
[1749949154198,1.10190711,105870.0,105860.0,0.22945794]
[1749949154412,1.11077535,105870.0,105860.0,0.22945794]
[1749949154570,1.12629477,105870.0,105860.0,0.22945794]
[1749949154770,1.11742653,105870.0,105860.0,0.22945794]
[1749949155004,1.15539477,105870.0,105860.0,0.22945794]
[1749949155258,1.15536845,105870.0,105860.0,0.22945794]
[1749949155500,1.59786071,105870.0,105860.0,0.22945794]
[1749949155658,1.5968407,105870.0,105860.0,0.22945794]
[1749949155858,1.63006071,105870.0,105860.0,0.22945794]
[1749949156063,1.62341671,105870.0,105860.0,0.22945794]
[1749949156296,1.6034847,105870.0,105860.0,0.22945794]
[1749949156742,1.60569937,105870.0,105860.0,0.22945794]
[1749949156962,1.62120204,105870.0,105860.0,0.22945794]
[1749949157119,1.61234337,105870.0,105860.0,0.22945794]
[1749949157347,1.63006071,105870.0,105860.0,0.22945794]
[1749949157710,1.62341671,105870.0,105860.0,0.22945794]
[1749949158170,0.53837503,105860.0,105850.0,0.34719442]
[1749949158354,1.08597753,105860.0,105850.0,0.47049442]
[1749949158505,1.10148078,105860.0,105850.0,0.47049442]
[1749949158710,1.11033983,105860.0,105850.0,0.47049442]
[1749949158922,1.35033983,105860.0,105850.0,0.47049442]
[1749949159159,1.32376288,105860.0,105850.0,0.47049442]
[1749949159392,1.34148093,105860.0,105850.0,0.47049442]
[1749949159626,1.35033998,105860.0,105850.0,0.47049442]
[1749949159826,1.34148095,105860.0,105850.0,0.19348]
[1749949160068,1.32376289,105860.0,105850.0,0.19348]
[1749949160243,1.32597765,105860.0,105850.0,0.19348]
[1749949160490,1.33483668,105860.0,105850.0,0.19348]
[1749949160693,1.35033998,105860.0,105850.0,0.19348]
[1749949160895,1.34369571,105860.0,105850.0,0.19348]
[1749949161242,0.19839386,105850.0,105840.0,0.41593236]
[1749949161468,1.07713745,105850.0,105840.0,0.35263236]
[1749949161830,1.16410279,105850.0,105840.0,0.11529794]
[1749949162029,1.16410322,105850.0,105840.0,0.22941794]
[1749949162241,0.7304616,105850.0,105840.0,0.22941794]
[1749949162442,1.17296348,105850.0,105840.0,0.22941794]
[1749949162666,1.17296341,105850.0,105840.0,0.22941794]
[1749949162878,1.15745799,105850.0,105840.0,0.22941794]
[1749949163085,1.17296346,105850.0,105840.0,0.22941794]
[1749949163292,1.16633741,105850.0,105840.0,0.22941794]
[1749949163498,1.16412952,105850.0,105840.0,0.22941794]
[1749949163701,1.14860729,105850.0,105840.0,0.07561794]
[1749949163906,1.15747714,105850.0,105840.0,0.22941794]
[1749949164121,1.15525967,105850.0,105840.0,0.22941794]
[1749949164341,1.17299935,105850.0,105840.0,0.22941794]
[1749949164757,1.17299935,105850.0,105840.0,0.07561794]
[1749949164932,1.16403965,105850.0,105840.0,0.22941794]
[1749949165145,1.14857461,105850.0,105840.0,0.22941794]
[1749949165351,1.17287682,105850.0,105840.0,0.22941794]
[1749949165587,1.16403965,105850.0,105840.0,0.22941794]
[1749949165779,1.14636532,105850.0,105840.0,0.07561794]
[1749949165991,1.16624894,105850.0,105840.0,0.22941794]
[1749949166212,1.17287681,105850.0,105840.0,0.22941794]
[1749949166426,1.16403965,105850.0,105840.0,0.22941794]
[1749949166632,1.16624896,105850.0,105840.0,0.22941794]
[1749949166834,1.22578364,105850.0,105840.0,0.07561794]
[1749949167041,1.17287684,105850.0,105840.0,0.22941794]
[1749949167257,1.16403967,105850.0,105840.0,0.22941794]
[1749949167459,1.14857461,105850.0,105840.0,0.22941794]
[1749949167671,1.14636532,105850.0,105840.0,0.22941794]
[1749949167887,0.53841251,105840.0,105830.0,0.31669442]
[1749949168164,1.08599334,105840.0,105830.0,0.47053442]
[1749949168377,1.10366785,105840.0,105830.0,0.47053442]
[1749949168795,1.10366803,105840.0,105830.0,0.47053442]
[1749949169000,1.10366843,105840.0,105830.0,0.47053442]
[1749949169244,1.08599354,105840.0,105830.0,0.47053442]
[1749949169473,1.0971561,105840.0,105830.0,0.31669442]
[1749949169717,1.0971561,105840.0,105830.0,0.47053442]
[1749949169935,1.12366897,105840.0,105830.0,0.27701442]
[1749949170140,1.12366896,105840.0,105830.0,0.53123442]
[1749949170349,1.0971561,105840.0,105830.0,0.53123442]
[1749949170553,1.12366896,105840.0,105830.0,0.53123442]
[1749949170812,0.69061507,105840.0,105830.0,0.53123442]
[1749949171022,0.68116704,105840.0,105830.0,0.53123442]
[1749949171433,0.66349189,105840.0,105830.0,0.53123442]
[1749949171853,0.68116708,105840.0,105830.0,0.25422]
[1749949172079,0.68116708,105840.0,105830.0,0.0607]
[1749949172283,0.68116708,105840.0,105830.0,0.25422]
[1749949172721,0.66349187,105840.0,105830.0,0.25422]
[1749949172932,0.68116708,105840.0,105830.0,0.25422]
[1749949173146,0.67232947,105840.0,105830.0,0.25422]
[1749949173366,0.65465427,105840.0,105830.0,0.25422]
[1749949173571,0.66349187,105840.0,105830.0,0.25422]
[1749949173780,0.67232947,105840.0,105830.0,0.5582495]
[1749949173987,0.48165034,105840.0,105830.0,1.01964857]
[1749949174190,0.3677334,105840.0,105830.0,1.07909724]
[1749949174399,0.58381941,105840.0,105830.0,1.07909733]
[1749949174617,0.57498246,105840.0,105830.0,1.07909733]
[1749949174824,0.56614544,105840.0,105830.0,0.98294811]
[1749949175043,0.56614549,105840.0,105830.0,0.98294811]
[1749949175250,0.38601817,105840.0,105830.0,0.98294749]
[1749949175463,0.36834403,105840.0,105830.0,0.98294749]
[1749949175670,0.39485538,105840.0,105830.0,0.98294749]
[1749949175939,0.58381986,105840.0,105830.0,0.96405042]
[1749949176163,0.58381987,105840.0,105830.0,0.52154859]
[1749949176369,0.58381987,105840.0,105830.0,0.96405042]
[1749949176573,0.56614562,105840.0,105830.0,0.96405042]
[1749949176785,0.57498276,105840.0,105830.0,0.96405042]
[1749949176986,0.56614563,105840.0,105830.0,0.52154859]
[1749949177207,0.58381989,105840.0,105830.0,0.52154859]
[1749949177618,0.58381988,105840.0,105830.0,0.52154859]
[1749949177791,0.5573085,105840.0,105830.0,0.81144859]
[1749949177995,0.58381989,105840.0,105830.0,0.81144859]
[1749949178588,0.58381987,105840.0,105830.0,0.81144859]
[1749949178749,0.56614562,105840.0,105830.0,0.81144859]
[1749949179282,0.57498276,105840.0,105830.0,0.81144859]
[1749949179485,0.3854072,105840.0,105830.0,0.82089717]
[1749949179692,0.37657007,105840.0,105830.0,0.82089717]
[1749949179883,0.38540719,105840.0,105830.0,0.82089717]
[1749949180065,0.37656988,105840.0,105830.0,0.83034566]
[1749949180271,0.38540691,105840.0,105830.0,0.83034566]
[1749949180512,0.38541844,105840.0,105830.0,0.83034566]
[1749949180718,0.36773284,105840.0,105830.0,0.83034566]
[1749949180926,0.38542421,105840.0,105830.0,0.83034566]
[1749949181153,0.37658141,105840.0,105830.0,0.83034566]
[1749949181356,0.38542421,105840.0,105830.0,0.83034566]
[1749949182107,0.36773861,105840.0,105830.0,0.83034566]
[1749949182336,0.38542421,105840.0,105830.0,0.83034566]
[1749949182535,0.37658141,105840.0,105830.0,0.83034566]
[1749949182757,0.43833104,105840.0,105830.0,0.83034566]
[1749949182956,0.36773861,105840.0,105830.0,0.83034566]
[1749949183127,0.38542413,105840.0,105830.0,0.83034566]
[1749949183338,0.36834394,105840.0,105830.0,0.83034566]
[1749949183545,0.38602944,105840.0,105830.0,0.83034566]
[1749949183755,0.36834394,105840.0,105830.0,0.83034566]
[1749949183936,0.39487219,105840.0,105830.0,0.83034566]
[1749949184135,0.36834394,105840.0,105830.0,0.83034566]
[1749949184338,0.39487219,105840.0,105830.0,0.81144859]
[1749949184709,0.3948722,105840.0,105830.0,0.80199992]
[1749949185024,0.40152405,105840.0,105830.0,0.81144859]
[1749949185237,0.5905149,105840.0,105830.0,0.81144859]
[1749949185457,0.59056767,105840.0,105830.0,0.81144859]
[1749949185652,0.59056768,105840.0,105830.0,0.81144859]
[1749949185867,0.58391583,105840.0,105830.0,0.80199992]
[1749949186066,0.5728294,105840.0,105830.0,0.80199992]
[1749949186664,0.58169854,105840.0,105830.0,0.80199992]
[1749949187065,0.58111991,105840.0,105830.0,0.80200028]
[1749949187295,0.56338163,105840.0,105830.0,0.80200028]
[1749949187491,0.58111991,105840.0,105830.0,1.20200028]
[1749949187783,0.99643542,105840.0,105830.0,0.8006]
[1749949187994,1.11041575,105840.0,105830.0,0.88842]
[1749949188165,1.09267748,105840.0,105830.0,0.88842]
[1749949188303,1.10376459,105840.0,105830.0,0.88842]
[1749949188505,1.10376508,105840.0,105830.0,0.88842]
[1749949188707,1.11267804,105840.0,105830.0,0.6949]
[1749949188915,1.11267804,105840.0,105830.0,0.88842]
[1749949189158,1.13041731,105840.0,105830.0,0.88842]
[1749949189332,1.11267804,105840.0,105830.0,0.88842]
[1749949189535,1.12154768,105840.0,105830.0,0.59352]
[1749949189743,1.10602582,105840.0,105830.0,0.59352]
[1749949189947,1.11267806,105840.0,105830.0,0.59352]
[1749949190130,1.13041734,105840.0,105830.0,0.59352]
[1749949190331,1.10380842,105840.0,105830.0,0.59352]
[1749949190576,1.11489547,105840.0,105830.0,0.59352]
[1749949190751,1.13041734,105840.0,105830.0,0.59352]
[1749949190949,1.10602583,105840.0,105830.0,0.59352]
[1749949191200,1.1215477,105840.0,105830.0,0.59352]
[1749949191404,1.18332414,105840.0,105830.0,0.59352]
[1749949191583,1.11267804,105840.0,105830.0,0.59352]
[1749949191784,1.13041734,105840.0,105830.0,0.59352]
[1749949192190,1.12376511,105840.0,105830.0,0.59352]
[1749949192414,1.13041734,105840.0,105830.0,0.59352]
[1749949193662,1.11489547,105840.0,105830.0,0.59352]
[1749949193881,1.13041734,105840.0,105830.0,0.59352]
[1749949194087,1.11267806,105840.0,105830.0,0.59352]
[1749949194295,1.13041734,105840.0,105830.0,0.59352]
[1749949194507,1.11489547,105840.0,105830.0,0.59352]
[1749949194710,1.13041784,105840.0,105830.0,0.59352]
[1749949194920,1.13041822,105840.0,105830.0,0.59352]
[1749949195127,1.1038088,105840.0,105830.0,0.59352]
[1749949195373,1.13041923,105840.0,105830.0,0.88842]
[1749949195785,1.13041922,105840.0,105830.0,0.88842]
[1749949196021,1.11267893,105840.0,105830.0,0.88842]
[1749949196179,1.12376662,105840.0,105830.0,0.88842]
[1749949196370,1.13041923,105840.0,105830.0,0.88842]
[1749949197047,1.12154909,105840.0,105830.0,0.88842]
[1749949197350,1.11267894,105840.0,105830.0,0.88842]
[1749949197655,1.12154909,105840.0,105830.0,0.88842]
[1749949197812,1.11267894,105840.0,105830.0,0.88842]
[1749949198016,1.12154909,105840.0,105830.0,0.88842]
[1749949198185,1.11489648,105840.0,105830.0,0.88842]
[1749949198393,1.13041923,105840.0,105830.0,0.88842]
[1749949198606,1.12154909,105840.0,105830.0,0.88842]
[1749949198808,1.13041923,105840.0,105830.0,0.88842]
[1749949199011,1.12376662,105840.0,105830.0,0.88842]
[1749949199496,1.11267894,105840.0,105830.0,0.88842]
[1749949199704,1.12153388,105840.0,105830.0,0.88842]
[1749949199909,1.1060208,105840.0,105830.0,0.88842]
[1749949200117,1.13039849,105840.0,105830.0,0.88842]
[1749949200324,1.12153406,105840.0,105830.0,0.88842]
[1749949200547,1.11266938,105840.0,105830.0,0.88842]
[1749949200758,1.1038047,105840.0,105830.0,0.88842]
[1749949200978,1.1126694,105840.0,105830.0,0.88842]
[1749949201185,1.13039879,105840.0,105830.0,0.88842]
[1749949201395,1.1126694,105840.0,105830.0,0.88842]
[1749949201601,1.13039879,105840.0,105830.0,0.88842]
[1749949201816,1.10380471,105840.0,105830.0,0.88842]
[1749949202031,1.13039879,105840.0,105830.0,0.89786911]
[1749949202244,1.12375027,105840.0,105830.0,0.89786911]
[1749949202451,1.13039878,105840.0,105830.0,0.89786911]
[1749949202646,1.13039878,105840.0,105830.0,0.92796911]
[1749949202907,1.12375026,105840.0,105830.0,0.92796911]
[1749949203114,1.1126694,105840.0,105830.0,0.92796911]
[1749949203320,1.10602088,105840.0,105830.0,0.92796911]
[1749949203532,1.13039879,105840.0,105830.0,0.95846911]
[1749949203959,0.4995151,105840.0,105830.0,1.61829953]
[1749949204165,0.51782677,105840.0,105830.0,1.61829953]
[1749949204381,0.48458525,105840.0,105830.0,1.32339953]
[1749949204592,0.35551218,105840.0,105830.0,1.37339953]
[1749949204819,0.38268731,105840.0,105830.0,1.37339953]
[1749949205045,0.34944742,105840.0,105830.0,1.4157124]
[1749949205224,0.34944742,105840.0,105830.0,1.37339953]
[1749949205456,0.37603853,105840.0,105830.0,1.39600927]
[1749949205712,0.3649589,105840.0,105830.0,1.39600927]
[1749949205947,0.36437518,105840.0,105830.0,1.39600927]
[1749949206150,0.35551147,105840.0,105830.0,1.39600927]
[1749949206365,0.34,105840.0,105830.0,1.39600927]
[1749949206603,0.34664778,105840.0,105830.0,1.39600927]
[1749949206764,0.36659111,105840.0,105830.0,1.39600927]
[1749949207187,0.36659107,105840.0,105830.0,1.39600927]
[1749949207514,0.36659105,105840.0,105830.0,1.39600927]
[1749949207750,0.34,105840.0,105830.0,1.39600927]
[1749949207970,0.36659092,105840.0,105830.0,1.39600927]
[1749949208187,0.36644919,105840.0,105830.0,1.41097252]
[1749949208392,0.34872191,105840.0,105830.0,1.41097252]
[1749949208613,0.36644919,105840.0,105830.0,1.41097252]
[1749949208848,0.37589669,105840.0,105830.0,1.41097252]
[1749949209008,0.36644914,105840.0,105830.0,1.41097252]
[1749949209168,0.34872188,105840.0,105830.0,1.41097252]
[1749949209394,0.33985827,105840.0,105830.0,1.41097252]
[1749949209594,0.34872188,105840.0,105830.0,1.41097252]
[1749949209880,0.36644911,105840.0,105830.0,1.41097252]
[1749949210235,0.37589653,105840.0,105830.0,1.41097252]
[1749949210431,0.36423733,105840.0,105830.0,1.41097252]
[1749949210651,0.37310643,105840.0,105830.0,1.41097252]
[1749949210820,0.36423732,105840.0,105830.0,1.41097252]
[1749949211006,0.38256496,105840.0,105830.0,1.39600927]
[1749949211209,0.38256487,105840.0,105830.0,1.39600927]
[1749949211432,0.37427427,105840.0,105830.0,1.39600927]
[1749949211783,0.37311737,105840.0,105830.0,1.39600927]
[1749949211988,0.37591305,105840.0,105830.0,1.39600927]
[1749949212141,0.38256487,105840.0,105830.0,1.39600927]
[1749949212557,0.36704396,105840.0,105830.0,1.39600927]
[1749949212748,0.36482668,105840.0,105830.0,1.39600927]
[1749949212943,0.38256487,105840.0,105830.0,1.39600927]
[1749949213146,0.37369578,105840.0,105830.0,1.39600927]
[1749949213369,0.38256487,105840.0,105830.0,1.39600927]
[1749949213569,0.39201255,105840.0,105830.0,1.39600927]
[1749949213974,0.38256487,105840.0,105830.0,1.39600927]
[1749949214401,0.39201246,105840.0,105830.0,1.39600927]
[1749949214604,0.59987292,105840.0,105830.0,0.7410902]
[1749949214806,1.18072252,105840.0,105830.0,0.43968]
[1749949215040,1.18072407,105840.0,105830.0,0.4]
[1749949215186,1.18298469,105840.0,105830.0,0.59348]
[1749949215387,1.1829847,105840.0,105830.0,0.59348]
[1749949215563,1.20072472,105840.0,105830.0,0.59348]
[1749949215764,1.18298483,105840.0,105830.0,0.59348]
[1749949216100,1.13972485,105840.0,105830.0,0.59348]
[1749949216308,1.13085484,105840.0,105830.0,0.4]
[1749949216480,1.10646232,105840.0,105830.0,0.59344]
[1749949216696,1.11533233,105840.0,105830.0,0.59344]
[1749949216885,1.13972485,105840.0,105830.0,0.59344]
[1749949217099,1.13307235,105840.0,105830.0,0.78242233]
[1749949217308,1.13972485,105840.0,105830.0,0.78242233]
[1749949217524,1.10366696,105840.0,105830.0,0.59344]
[1749949217893,1.13027699,105840.0,105830.0,0.4]
[1749949218098,1.10588447,105840.0,105830.0,0.59344]
[1749949218270,1.13027699,105840.0,105830.0,0.59344]
[1749949218469,1.12362449,105840.0,105830.0,0.59344]
[1749949218830,1.13027699,105840.0,105830.0,0.59344]
[1749949219249,1.12140698,105840.0,105830.0,0.59344]
[1749949219450,1.17653132,105840.0,105830.0,0.59344]
[1749949219651,1.12140698,105840.0,105830.0,0.59344]
[1749949219872,1.12362449,105840.0,105830.0,0.59344]
[1749949220063,1.09701446,105840.0,105830.0,0.59344]
[1749949220206,1.11475448,105840.0,105830.0,0.59344]
[1749949220609,1.12362449,105840.0,105830.0,0.60288911]
[1749949220837,1.11253697,105840.0,105830.0,0.60288911]
[1749949221295,1.13027699,105840.0,105830.0,0.60288911]
[1749949221487,1.10366696,105840.0,105830.0,0.60288911]
[1749949221686,0.68777516,105840.0,105830.0,0.60288911]
[1749949221885,0.68112266,105840.0,105830.0,0.60288911]
[1749949222095,0.68777516,105840.0,105830.0,0.60288911]
[1749949222295,0.67890515,105840.0,105830.0,0.60288911]
[1749949222474,0.68777515,105840.0,105830.0,0.60288911]
[1749949222674,0.68777514,105840.0,105830.0,0.60288911]
[1749949222881,0.68777514,105840.0,105830.0,0.80132046]
[1749949222882,0.67890515,105840.0,105830.0,0.80132046]
[1749949223086,0.68112266,105840.0,105830.0,0.80132046]
[1749949223268,0.66116513,105840.0,105830.0,0.80132046]
[1749949223468,0.68777516,105840.0,105830.0,0.80132046]
[1749949224200,0.67225265,105840.0,105830.0,0.80132046]
[1749949224377,0.68777516,105840.0,105830.0,0.80132046]
[1749949224575,0.66116513,105840.0,105830.0,0.80132046]
[1749949224831,0.68777516,105840.0,105830.0,0.80132046]
[1749949225034,0.68777516,105840.0,105830.0,1.09622046]
[1749949225279,0.67225265,105840.0,105830.0,1.09622046]
[1749949225599,0.65451263,105840.0,105830.0,1.09622046]
[1749949225803,0.68777516,105840.0,105830.0,1.09622046]
[1749949226442,0.6789051,105840.0,105830.0,1.09622046]
[1749949226646,0.68777505,105840.0,105830.0,1.09622046]
[1749949226858,0.67225257,105840.0,105830.0,1.09622046]
[1749949227061,0.68777502,105840.0,105830.0,1.09622046]
[1749949227267,0.68112254,105840.0,105830.0,1.09622046]
[1749949227469,0.68777449,105840.0,105830.0,1.09622046]
[1749949227678,0.67890452,105840.0,105830.0,1.09622046]
[1749949227893,0.68777429,105840.0,105830.0,1.09622046]
[1749949228098,0.68777428,105840.0,105830.0,1.09622046]
[1749949228310,0.68777426,105840.0,105830.0,1.09622046]
[1749949228512,0.67003472,105840.0,105830.0,1.09622046]
[1749949228715,0.6633824,105840.0,105830.0,1.09622046]
[1749949228966,0.68112194,105840.0,105830.0,1.09622046]
[1749949229175,0.67890449,105840.0,105830.0,1.09622046]
[1749949229389,0.68777426,105840.0,105830.0,1.09622046]
[1749949229596,0.68112194,105840.0,105830.0,1.11511814]
[1749949230016,0.4921572,105840.0,105830.0,1.11511814]
[1749949230227,0.35538036,105840.0,105830.0,1.67876846]
[1749949230410,0.38256663,105840.0,105830.0,1.67876846]
[1749949230656,0.34930569,105840.0,105830.0,1.67876846]
[1749949230885,0.36424905,105840.0,105830.0,1.67876846]
[1749949231099,0.36424905,105840.0,105830.0,1.38386846]
[1749949231100,0.35817514,105840.0,105830.0,1.38386846]
[1749949231317,0.36704452,105840.0,105830.0,1.38386846]
[1749949231537,0.38256592,105840.0,105830.0,1.38386846]
[1749949231753,0.35817506,105840.0,105830.0,1.38386846]
[1749949231950,0.36646639,105840.0,105830.0,1.38386846]
[1749949232199,0.37311842,105840.0,105830.0,1.38386846]
[1749949232655,0.35759702,105840.0,105830.0,1.38386846]
[1749949232893,0.35537967,105840.0,105830.0,1.38386846]
[1749949233118,0.36424881,105840.0,105830.0,1.38386846]
[1749949233340,0.36424876,105840.0,105830.0,1.38386846]
[1749949233563,0.34651022,105840.0,105830.0,1.38386846]
[1749949233782,0.36424876,105840.0,105830.0,1.38386846]
[1749949234000,0.37311803,105840.0,105830.0,1.38386846]
[1749949234243,0.36646608,105840.0,105830.0,1.38386846]
[1749949234684,0.36424876,105840.0,105830.0,1.38386846]
[1749949234882,0.35537949,105840.0,105830.0,1.38386846]
[1749949235344,0.36424876,105840.0,105830.0,1.38386846]
[1749949235561,0.37311803,105840.0,105830.0,1.38386846]
[1749949235776,0.35537949,105840.0,105830.0,1.38386846]
[1749949235971,0.36646608,105840.0,105830.0,1.38386846]